bitfinex-derivatives/quotes_ETHF0:USTF0_20241027
["timestamp","ask_amount","ask_price","bid_price","bid_amount"]
[1730066919339,0.3975,2518.6,2518.5,0.4476]
[1730066921233,0.3975,2518.6,2518.5,0.84511]
[1730066921641,0.39749,2518.7,2518.6,0.3975]
[1730066921840,0.39751,2518.5,2518.4,3.2078]
[1730066922039,0.39751,2518.5,2518.4,3.6558]
[1730066922443,0.39751,2518.5,2518.4,0.448]
[1730066925840,0.39751,2518.5,2518.4,0.84553]
[1730066928042,0.39751,2518.5,2518.4,4.05333]
[1730066928242,3.2078,2519.3,2518.5,0.99379]
[1730066928243,0.99354,2519.2,2518.5,0.99379]
[1730066928548,0.9936,2519.0,2518.4,0.448]
[1730066928748,0.39751,2518.6,2518.5,0.39751]
[1730066928948,0.39747,2518.8,2518.7,0.39746]
[1730066929151,4.0619,2519.3,2518.7,2.4823747]
[1730066929345,0.39742,2519.2,2519.1,0.39741]
[1730066929545,3.6454,2519.3,2518.8,1.45097]
[1730066929839,0.39741,2519.2,2519.1,0.3974]
[1730066930036,3.2078,2519.3,2519.2,0.3974]
[1730066930453,3.60519,2519.3,2519.2,0.3974]
[1730066930947,3.2078,2519.3,2519.2,0.3974]
[1730066931750,3.60519,2519.3,2519.2,0.3974]
[1730066932541,0.39739,2519.3,2519.2,0.3974]
[1730066932945,0.39738,2519.4,2519.3,0.39737]
[1730066935745,3.2078,2519.6,2519.3,0.39737]
[1730066935943,0.39737,2519.5,2519.4,0.39736]
[1730066936759,0.4376,2519.7,2519.2,0.99351]
[1730066936958,0.39733,2519.8,2519.7,0.39732]
[1730066937254,0.3973,2519.9,2519.8,0.39731]
[1730066937460,0.39729,2520.0,2519.9,0.39728]
[1730066938649,0.39732,2519.9,2519.8,0.3973]
[1730066939154,1.87052,2520.2,2519.6,3.2078]
[1730066939155,2.4823747,2520.0,2519.6,3.2078]
[1730066939359,0.99333,2519.7,2519.1,3.2078]
[1730066939561,0.39739,2519.4,2519.3,0.39738]
[1730066941250,0.8598,2519.6,2519.0,6.6837647]
[1730066941445,3.2078,2519.8,2519.4,2.4823747]
[1730066941645,0.4455,2520.2,2519.7,2.4823747]
[1730066941860,0.39728,2520.1,2520.0,0.39727]
[1730066942451,0.39726,2520.2,2520.1,0.39725]
[1730066942651,0.39726,2520.2,2519.7,2.4823747]
[1730066942652,0.39729,2520.0,2519.9,0.39728]
[1730066943053,0.39726,2520.2,2520.1,0.39725]
[1730066944163,0.39727,2520.1,2520.0,0.39726]
[1730066944358,0.39725,2520.2,2520.1,0.39724]
[1730066944562,0.39728,2520.1,2520.0,0.39726]
[1730066945463,0.39726,2520.2,2520.1,0.39725]
[1730066945960,0.39724,2520.3,2520.2,0.39723]
[1730066947054,3.4003747,2520.8,2520.2,0.39723]
[1730066947055,3.2078,2520.8,2520.2,9.6581747]
[1730066947363,0.3972,2520.6,2520.5,0.39719]
[1730066947659,3.60496,2520.8,2520.7,0.39717]
[1730066947954,0.39716,2520.8,2520.7,0.39717]
[1730066948262,0.8517,2520.9,2520.5,3.2078]
[1730066948263,0.4327,2520.9,2520.5,3.2078]
[1730066948653,4.0814,2521.2,2520.9,0.39713]
[1730066948654,0.39713,2521.0,2520.9,0.39713]
[1730066949251,0.39711,2521.1,2521.0,0.3971]
[1730066949552,3.2078,2521.5,2521.2,0.39708]
[1730066949553,0.39708,2521.3,2521.2,0.39708]
[1730066949961,0.39707,2521.4,2521.3,0.39706]
[1730066950358,0.39707,2521.4,2521.3,0.39707]
[1730066950756,0.39707,2521.4,2520.7,1.84321]
[1730066950757,6.4487747,2521.4,2520.2,3.2078]
[1730066950965,0.99284,2520.9,2520.2,3.2078]
[1730066951160,0.39722,2520.4,2520.2,0.39723]
[1730066951464,0.39722,2520.4,2520.3,0.39723]
[1730066951660,0.39721,2520.5,2520.3,0.39723]
[1730066952056,0.39721,2520.5,2520.4,0.39721]
[1730066952250,0.39719,2520.6,2520.2,2.4823747]
[1730066952455,0.3972,2520.5,2520.3,0.39722]
[1730066953766,0.8953,2520.8,2520.3,0.39722]
[1730066954065,0.39721,2520.5,2520.3,0.39722]
[1730066955254,1.8882,2520.8,2520.3,0.39722]
[1730066955657,1.8882,2520.8,2520.1,7.17870409]
[1730066955957,0.3972,2520.5,2520.4,0.39721]
[1730066957154,0.39721,2520.5,2520.4,0.39721]
[1730066957669,3.2078,2520.9,2520.4,7.02010409]
[1730066957861,0.39716,2520.8,2520.7,0.39716]
[1730066958370,0.39716,2520.8,2520.5,0.8607]
[1730066958371,0.39714,2520.9,2520.8,0.39714]
[1730066958766,0.99274,2521.2,2520.5,4.0685]
[1730066958977,0.39716,2520.8,2520.7,0.39715]
[1730066959167,0.39714,2520.9,2520.8,0.39714]
[1730066959465,3.2078,2521.3,2520.5,4.0685]
[1730066959667,0.39714,2521.0,2520.9,0.39713]
[1730066959869,3.2078,2521.3,2520.6,3.97090409]
[1730066960068,4.20049,2521.3,2520.8,3.2078]
[1730066960269,0.39713,2520.9,2520.8,3.60494]
[1730066960470,0.39713,2520.9,2520.8,3.2078]
[1730066960666,0.39718,2520.6,2520.5,1.25789]
[1730066962680,0.39718,2520.6,2520.5,4.46569]
[1730066962971,0.39718,2520.6,2520.5,8.43289]
[1730066963178,0.39714,2521.0,2520.9,0.39712]
[1730066963566,0.39707,2521.4,2521.3,0.39706]
[1730066963770,0.39708,2521.3,2521.2,0.39708]
[1730066964272,3.2078,2521.5,2521.1,0.4106]
[1730066964474,0.39702,2521.7,2521.2,6.26070409]
[1730066964671,0.39703,2521.6,2521.5,0.39703]
[1730066965171,0.39702,2521.7,2521.6,0.39702]
[1730066965781,0.4196,2522.0,2521.3,0.99268]
[1730066965782,0.4196,2522.0,2521.5,3.2078]
[1730066965979,0.39702,2521.7,2521.6,0.39701]
[1730066966476,0.39699,2521.9,2521.8,0.39699]
[1730066966683,0.4218,2522.1,2521.7,0.397]
[1730066966871,0.4218,2522.1,2521.5,6.26070409]
[1730066967073,0.39699,2521.9,2521.7,0.397]
[1730066967274,0.39699,2521.8,2521.7,0.397]
[1730066967680,0.39699,2521.8,2521.5,6.26070409]
[1730066967875,0.39702,2521.7,2521.5,6.65773409]
[1730066968089,0.39702,2521.7,2521.6,0.39702]
[1730066968378,1.41419,2522.1,2521.5,6.65773409]
[1730066968582,0.39702,2521.6,2521.5,6.65773409]
[1730066968785,1.41419,2522.1,2521.5,6.65773409]
[1730066968985,0.39702,2521.7,2521.5,3.60483]
[1730066969372,0.39702,2521.7,2521.6,0.39702]
[1730066969679,1.41419,2522.1,2521.5,3.60483]
[1730066969680,0.39702,2521.6,2521.5,3.60483]
[1730066969988,0.39702,2521.7,2521.6,0.39702]
[1730066970683,0.99241,2522.0,2521.5,3.2078]
[1730066970884,0.99241,2522.0,2521.2,3.05290409]
[1730066970885,3.2078,2522.0,2521.2,7.17770409]
[1730066971290,0.39703,2521.6,2521.4,0.39704]
[1730066971781,3.2078,2522.0,2521.5,0.39704]
[1730066971989,3.2078,2522.0,2521.5,3.05290409]
[1730066972177,0.4218,2522.1,2521.5,6.26070409]
[1730066972383,0.39702,2521.6,2521.5,3.2078]
[1730066973184,0.4218,2522.1,2521.5,3.2078]
[1730066973492,0.4218,2522.1,2521.5,6.26070409]
[1730066973695,0.397,2521.8,2521.7,0.397]
[1730066974582,0.39701,2521.7,2521.6,2.87617769]
[1730066974988,0.39701,2521.7,2521.6,2.47916769]
[1730066975782,0.39701,2521.7,2521.6,2.87618769]
[1730066976791,0.39701,2521.7,2521.6,2.47916769]
[1730066976990,0.39701,2521.7,2521.6,2.87618769]
[1730066977688,0.39701,2521.8,2521.7,0.397]
[1730066977992,3.2078,2522.2,2521.7,0.8745]
[1730066978291,0.99225,2522.4,2522.1,0.39694]
[1730066978498,0.39694,2522.2,2522.1,0.39694]
[1730066978787,3.6201,2522.6,2522.0,2.47916769]
[1730066979086,0.39689,2522.5,2522.4,2.87605769]
[1730066979593,0.453,2522.9,2522.4,6.44316769]
[1730066979885,0.39688,2522.5,2522.4,2.87604769]
[1730066980287,0.9921,2522.8,2522.5,0.39687]
[1730066980288,0.39688,2522.6,2522.5,0.39687]
[1730066980586,0.3969,2522.5,2522.4,0.39689]
[1730066980789,0.39689,2522.5,2522.3,3.49656083]
[1730066980986,0.39691,2522.3,2522.2,3.2078]
[1730066981191,0.39693,2522.2,2522.1,3.05036083]
[1730066982888,0.39698,2521.9,2521.8,3.92256083]
[1730066983090,0.99229,2522.3,2521.6,6.25816083]
[1730066983091,5.06759,2522.3,2521.6,6.25816083]
[1730066983285,0.39703,2521.6,2521.5,0.39703]
[1730066983892,0.39702,2521.7,2521.4,0.39706]
[1730066984087,0.39703,2521.6,2521.5,0.39703]
[1730066984294,0.39702,2521.7,2521.6,0.39702]
[1730066985296,0.39701,2521.7,2521.6,7.41298083]
[1730066986493,0.39701,2521.7,2521.6,3.44738083]
[1730066986694,0.397,2521.8,2521.7,0.397]
[1730066987297,4.20018,2522.1,2521.6,3.44738083]
[1730066987298,0.39701,2521.7,2521.6,3.44738083]
[1730066987791,0.39701,2521.7,2521.6,3.05036083]
[1730066988194,0.39701,2521.7,2521.6,3.44738083]
[1730066989396,0.39701,2521.7,2521.6,3.05036083]
[1730066989595,0.39704,2521.6,2521.5,0.39703]
[1730066989898,0.99246,2521.9,2521.4,3.44740083]
[1730066989899,0.39704,2521.5,2521.4,3.44740083]
[1730066990102,0.39704,2521.5,2521.4,3.05036083]
[1730066990795,1.40084,2521.7,2521.3,0.4447]
[1730066990996,0.39707,2521.3,2521.2,4.03089]
[1730066991294,0.39701,2521.8,2521.7,0.397]
[1730066991792,0.39699,2521.9,2521.8,0.39697]
[1730066991996,0.39696,2522.1,2522.0,0.39695]
[1730066992298,4.0383,2522.2,2521.9,0.447]
[1730066992500,0.39696,2522.1,2522.0,0.39695]
[1730066993197,0.39695,2522.1,2522.0,0.39695]
[1730066993398,3.60474,2522.2,2522.1,0.39695]
[1730066994192,0.4105,2522.4,2522.2,0.39691]
[1730066994193,0.39693,2522.3,2522.2,0.39691]
[1730066994791,0.39695,2522.2,2522.1,0.39694]
[1730066996101,0.39689,2522.5,2522.4,0.39688]
[1730066996398,3.60468,2522.6,2522.5,0.39688]
[1730066998199,0.4218,2522.8,2522.4,3.05036083]
[1730066998400,3.6422,2522.9,2522.8,0.39684]
[1730066998401,0.39683,2522.9,2522.8,0.39684]
[1730066999211,4.63415,2523.2,2522.7,3.05036083]
[1730066999401,4.63415,2523.2,2523.0,0.3968]
[1730066999402,0.39681,2523.1,2523.0,0.3968]
[1730066999599,0.39682,2523.0,2522.9,0.39681]
[1730066999905,0.39684,2522.9,2522.8,0.39683]
[1730067000300,0.39683,2522.9,2522.8,0.39683]
[1730067000506,0.39682,2523.0,2522.9,0.39681]
[1730067001903,0.992,2523.1,2522.6,3.2078]
[1730067002206,0.39691,2522.3,2522.2,3.2078]
[1730067002501,0.39691,2522.3,2522.1,3.44730083]
[1730067002502,0.39694,2522.2,2522.1,0.39693]
[1730067002705,0.39694,2522.2,2522.1,0.39694]
[1730067003295,1.2755,2522.6,2522.0,2.47891913]
[1730067003605,0.3969,2522.5,2522.4,0.39689]
[1730067003803,0.39686,2522.7,2522.6,0.39685]
[1730067004000,0.39686,2522.7,2522.6,2.87576913]
[1730067004205,2.29594,2523.0,2522.6,2.87576913]
[1730067004206,0.39684,2522.8,2522.7,0.39683]
[1730067006500,0.39687,2522.7,2522.6,0.39686]
[1730067006808,0.39686,2522.8,2522.7,0.39684]
[1730067007102,0.39687,2522.7,2522.6,0.39686]
[1730067008005,2.29593,2523.0,2522.5,3.05036223]
[1730067008006,0.39683,2522.9,2522.8,0.39683]
[1730067008309,0.39685,2522.8,2522.7,0.39684]
[1730067008696,0.39687,2522.7,2522.6,0.39686]
[1730067010003,0.39684,2522.8,2522.7,0.39683]
[1730067010209,0.39686,2522.7,2522.6,0.39685]
[1730067010610,0.39685,2522.8,2522.7,0.39684]
[1730067011899,0.39687,2522.7,2522.6,0.39686]
[1730067012103,0.39685,2522.8,2522.7,0.39684]
[1730067012707,0.4472,2523.0,2522.5,4.04257223]
[1730067012913,0.39682,2523.0,2522.9,0.39681]
[1730067013107,0.39682,2522.9,2522.8,3.44718223]
[1730067014609,4.19979,2523.1,2522.9,0.3968]
[1730067014610,0.39682,2523.0,2522.9,0.3968]
[1730067015210,0.39688,2522.5,2522.4,0.8643]
[1730067015412,0.39688,2522.5,2522.3,3.2078]
[1730067015413,0.99215,2522.7,2522.3,3.2078]
[1730067015611,0.39695,2522.2,2522.1,0.39693]
[1730067015809,0.39695,2522.2,2522.1,6.65509223]
[1730067016615,0.39693,2522.3,2522.2,0.39691]
[1730067017617,0.39693,2522.3,2522.2,0.82201]
[1730067018117,0.39688,2522.6,2522.5,0.39687]
[1730067018322,3.2078,2522.7,2522.5,3.05036223]
[1730067018620,0.39687,2522.6,2522.5,3.44723223]
[1730067018813,1.98388,2523.3,2522.5,3.44723223]
[1730067018814,3.2078,2523.6,2522.6,4.95615]
[1730067019116,0.39674,2523.4,2523.3,3.05036223]
[1730067019422,0.39677,2523.2,2523.1,3.2078]
[1730067019719,0.39677,2523.2,2523.1,3.60459]
[1730067020116,0.39677,2523.2,2523.1,3.2078]
[1730067020417,0.39677,2523.2,2523.1,3.60458]
[1730067021732,0.39677,2523.3,2523.2,0.39676]
[1730067022215,0.39676,2523.4,2523.3,0.39675]
[1730067022421,0.39677,2523.3,2523.2,0.39676]
[1730067023022,0.4205,2523.5,2523.1,3.6155]
[1730067023324,0.39677,2523.3,2523.2,0.39676]
[1730067023822,0.4205,2523.5,2523.1,3.6155]
[1730067024021,0.39677,2523.2,2523.1,4.01227]
[1730067024727,0.4205,2523.5,2523.1,3.6155]
[1730067024919,0.39677,2523.3,2523.2,0.39676]
[1730067025120,0.81724,2523.5,2523.4,0.39674]
[1730067025315,0.39674,2523.5,2523.4,0.39674]
[1730067025720,1.87723,2523.8,2523.5,0.39671]
[1730067025721,0.39672,2523.6,2523.5,0.39671]
[1730067025922,3.6577,2523.9,2523.5,3.05036223]
[1730067025923,3.2078,2523.9,2523.5,3.05036223]
[1730067026221,0.39662,2524.2,2524.1,0.39662]
[1730067026419,3.2078,2524.6,2524.1,3.05036223]
[1730067026619,3.2078,2524.6,2524.5,2.8731771]
[1730067026620,3.60435,2524.6,2524.5,2.8731771]
[1730067026824,3.60435,2524.6,2524.5,2.4766071]
[1730067027022,3.60435,2524.6,2524.5,2.8731771]
[1730067027221,3.2078,2524.9,2524.5,2.4766071]
[1730067027425,3.60432,2524.9,2524.8,2.4766071]
[1730067027625,0.39651,2524.9,2524.8,2.4766071]
[1730067027828,0.39654,2524.7,2524.6,3.2078]
[1730067028023,0.39654,2524.7,2524.6,5.6844071]
[1730067028223,0.39653,2524.8,2524.7,0.39654]
[1730067028423,3.2078,2525.2,2524.7,3.04748266]
[1730067028629,0.39647,2525.1,2525.0,3.04748266]
[1730067028823,3.2078,2525.6,2525.0,6.25528266]
[1730067029023,3.2078,2525.6,2525.2,3.04748266]
[1730067029238,0.39644,2525.3,2525.2,3.04748266]
[1730067030528,0.39641,2525.5,2525.2,7.40393266]
[1730067030721,0.39641,2525.5,2525.4,3.04748266]
[1730067031121,3.96,2525.5,2525.2,3.04748266]
[1730067031332,3.2078,2525.6,2525.2,3.04748266]
[1730067031333,0.39644,2525.3,2525.2,3.04748266]
[1730067031739,4.35644,2525.3,2525.2,3.04748266]
[1730067032429,4.35644,2525.3,2524.9,3.04748266]
[1730067032430,0.39649,2525.0,2524.9,3.04748266]
[1730067032631,0.39654,2524.7,2524.6,3.04748266]
[1730067032826,0.99119,2525.1,2524.6,3.04748266]
[1730067033031,0.39657,2524.5,2524.4,3.2078]
[1730067033332,3.6149,2525.0,2524.1,3.04748266]
[1730067033530,0.39662,2524.2,2524.1,3.04748266]
[1730067033724,0.4191,2524.9,2523.8,6.25528266]
[1730067033725,3.2078,2524.3,2523.8,6.25528266]
[1730067033930,0.39666,2523.9,2523.8,3.04748266]
[1730067034331,0.39666,2524.0,2523.8,3.04748266]
[1730067034630,0.39664,2524.1,2523.9,0.39666]
[1730067034830,0.39662,2524.2,2524.1,3.04748266]
[1730067035233,3.60441,2524.3,2524.1,7.40570266]
[1730067035439,3.2078,2524.3,2524.2,4.35822]
[1730067035637,0.99121,2525.1,2524.2,4.3962]
[1730067035837,0.39654,2524.7,2524.6,3.04748266]
[1730067036930,3.2078,2525.5,2524.6,7.00828266]
[1730067037132,3.2078,2525.5,2525.1,3.04748266]
[1730067037343,0.39646,2525.2,2525.1,3.04748266]
[1730067038437,0.99111,2525.4,2524.8,3.04748266]
[1730067038634,3.6274,2525.5,2524.8,3.04748266]
[1730067038837,0.99119,2525.2,2524.6,3.04748266]
[1730067039035,0.39654,2524.7,2524.6,3.04748266]
[1730067040342,0.39655,2524.6,2524.5,3.2078]
[1730067040737,0.4485,2524.9,2524.4,3.48938266]
[1730067040933,0.39657,2524.5,2524.4,3.48938266]
[1730067042346,0.39657,2524.5,2524.4,3.88596266]
[1730067042644,0.39657,2524.5,2524.4,3.44406266]
[1730067042843,0.4485,2524.9,2524.4,3.04748266]
[1730067043037,0.39657,2524.5,2524.4,3.44406266]
[1730067043237,0.39657,2524.5,2524.4,3.04748266]
[1730067043638,0.39657,2524.5,2524.4,3.44406266]
[1730067044540,0.39656,2524.6,2524.5,0.39656]
[1730067045049,0.39651,2524.9,2524.8,0.39652]
[1730067045243,0.39651,2524.9,2524.8,3.04748266]
[1730067045443,3.2078,2525.0,2524.8,3.04748266]
[1730067045750,0.39649,2525.0,2524.9,0.39649]
[1730067046145,3.2078,2525.3,2524.8,3.04748266]
[1730067046343,0.39649,2525.0,2524.9,0.39649]
[1730067046641,0.39651,2524.9,2524.8,3.44400266]
[1730067046847,0.39651,2524.9,2524.8,3.04748266]
[1730067047048,0.39654,2524.7,2524.6,3.47198266]
[1730067047245,0.39654,2524.7,2524.6,3.04748266]
[1730067048146,4.35734,2524.7,2524.6,3.04748266]
[1730067049248,0.39648,2525.1,2525.0,0.39648]
[1730067049444,0.3965,2525.0,2524.9,0.3965]
[1730067049650,3.2078,2525.2,2524.8,3.04748266]
[1730067049855,3.60426,2525.2,2525.1,3.04748266]
[1730067050542,0.39649,2525.1,2525.0,0.39648]
[1730067050744,0.39649,2525.0,2524.9,3.44397266]
[1730067051446,0.39649,2525.0,2524.9,7.40477266]
[1730067051652,3.2078,2525.2,2525.1,0.39647]
[1730067051953,3.2078,2525.2,2525.1,3.44395266]
[1730067052255,3.2078,2525.2,2525.1,7.40395266]
[1730067053452,3.2078,2525.2,2524.6,0.84144]
[1730067053453,0.39654,2524.7,2524.6,0.84144]
[1730067053654,3.60434,2524.7,2524.6,3.04748266]
[1730067054055,0.39658,2524.4,2524.3,3.04748266]
[1730067054846,0.39658,2524.4,2524.3,3.46558266]
[1730067055053,0.39656,2524.6,2524.3,7.42718266]
[1730067055242,3.2078,2524.7,2524.6,3.44403266]
[1730067055948,0.4245,2525.1,2524.6,7.00828266]
[1730067056154,0.39651,2524.9,2524.8,0.39652]
[1730067056451,0.39651,2524.9,2524.8,3.46558266]
[1730067056650,0.39651,2524.9,2524.8,3.86210266]
[1730067056952,3.2078,2525.2,2524.8,3.86210266]
[1730067057149,0.3965,2525.0,2524.8,3.46558266]
[1730067057350,0.3965,2525.0,2524.9,0.39649]
[1730067057545,0.4416,2525.5,2524.9,3.9608]
[1730067057745,0.4416,2525.5,2525.4,3.04748266]
[1730067057746,0.83801,2525.5,2525.4,3.04748266]
[1730067058146,0.39643,2525.4,2525.2,3.04748266]
[1730067058444,0.4416,2525.5,2525.2,3.04748266]
[1730067058445,0.39644,2525.3,2525.2,3.04748266]
[1730067059750,0.39649,2525.0,2524.9,3.04748266]
[1730067060054,3.60426,2525.3,2525.2,0.39646]
[1730067060252,0.39646,2525.3,2525.2,3.04748266]
[1730067060951,3.2078,2525.6,2524.9,3.04748266]
[1730067061153,3.2078,2525.3,2524.9,3.04748266]
[1730067061355,0.39649,2525.0,2524.9,3.04748266]
[1730067062051,3.60429,2525.0,2524.9,3.04748266]
[1730067063249,0.39649,2525.0,2524.9,3.04748266]
[1730067065945,0.39649,2525.0,2524.8,0.4181]
[1730067065946,4.60843,2525.3,2524.8,0.4181]
[1730067066148,4.60843,2525.3,2524.6,3.04748266]
[1730067066149,3.2078,2524.9,2524.6,3.04748266]
[1730067066448,0.39657,2524.5,2524.4,3.04748266]
[1730067067456,0.39657,2524.5,2524.4,3.44406266]
[1730067067657,0.39653,2524.8,2524.4,7.00908266]
[1730067067959,0.39652,2524.8,2524.7,3.04748266]
[1730067068857,0.39652,2524.8,2524.7,3.44401266]
[1730067069356,3.60432,2524.9,2524.8,0.39652]
[1730067069554,3.2078,2524.9,2524.7,3.04748266]
[1730067069751,0.39652,2524.8,2524.7,3.44401266]
[1730067069953,3.2078,2524.9,2524.7,3.04748266]
[1730067070253,3.60432,2524.9,2524.8,0.39652]
[1730067070960,3.2078,2524.9,2524.8,0.39652]
[1730067071362,3.2078,2524.9,2524.7,3.04748266]
[1730067071363,3.60431,2524.9,2524.7,3.04748266]
[1730067071550,3.60431,2524.9,2524.5,4.4836]
[1730067071551,0.39655,2524.6,2524.5,3.47348266]
[1730067071752,3.60435,2524.6,2524.5,3.47348266]
[1730067072263,3.60435,2524.6,2524.5,3.04748266]
[1730067074960,3.60435,2524.6,2524.5,3.44405266]
[1730067075663,3.60435,2524.6,2524.5,3.04748266]
[1730067077266,3.60435,2524.6,2524.5,3.44405266]
[1730067077465,3.60435,2524.6,2524.5,3.04748266]
[1730067077664,3.2078,2524.9,2524.8,0.39652]
[1730067077876,3.2078,2524.9,2524.8,3.44400266]
[1730067078068,0.39648,2525.1,2525.0,0.39649]
[1730067078372,3.60423,2525.5,2525.4,0.39642]
[1730067078577,3.60423,2525.5,2525.4,3.04748266]
[1730067079474,3.60423,2525.5,2525.4,3.44391266]
[1730067079773,3.2078,2525.5,2525.4,3.44391266]
[1730067079973,3.60421,2525.5,2525.4,3.44391266]
[1730067080173,3.2078,2525.5,2525.4,3.44391266]
[1730067080482,0.39636,2525.9,2525.4,7.40391266]
[1730067080771,3.2078,2526.4,2525.8,6.09496532]
[1730067080976,3.2078,2526.4,2526.3,3.04748266]
[1730067080977,3.60407,2526.4,2526.3,3.04748266]
[1730067081171,3.2078,2526.4,2525.5,3.45618266]
[1730067081371,3.2078,2526.0,2525.5,3.45618266]
[1730067081583,3.2078,2525.7,2525.5,3.85259266]
[1730067081875,0.3964,2525.6,2525.5,3.04748266]
[1730067082874,0.3964,2525.6,2525.2,0.39645]
[1730067082875,3.9592,2525.6,2525.2,3.04748266]
[1730067083076,0.39648,2525.1,2525.0,0.39648]
[1730067083276,3.2078,2525.4,2525.0,0.39648]
[1730067083277,3.2078,2525.4,2525.0,3.96]
[1730067083477,3.2078,2525.4,2525.1,0.39647]
[1730067083478,0.39646,2525.2,2525.1,0.39647]
[1730067083685,0.39646,2525.2,2525.1,3.44395266]
[1730067084085,0.39645,2525.3,2525.2,0.39645]
[1730067084285,0.39646,2525.2,2525.1,3.04748266]
[1730067084789,0.39649,2525.0,2524.9,3.89177266]
[1730067085285,0.39649,2525.0,2524.9,3.04748266]
[1730067085482,0.39652,2524.8,2524.7,0.4123]
[1730067086280,0.39652,2524.8,2524.3,3.2078]
[1730067086281,3.2078,2524.8,2524.3,3.04748266]
[1730067086495,0.39658,2524.4,2524.3,3.45978266]
[1730067086782,0.39658,2524.4,2524.3,3.85638266]
[1730067086990,0.39658,2524.5,2524.4,0.39658]
[1730067087482,0.39658,2524.5,2524.3,3.45978266]
[1730067087483,0.39656,2524.6,2524.5,0.39656]
[1730067087682,0.39657,2524.5,2524.4,0.39658]
[1730067088189,3.2078,2524.8,2524.4,3.9616]
[1730067088384,0.39652,2524.9,2524.8,0.39652]
[1730067088584,0.39652,2524.9,2524.8,1.25152]
[1730067088784,3.2078,2525.2,2524.8,0.855]
[1730067089391,3.2078,2525.2,2525.0,3.04748266]
[1730067089587,0.39647,2525.1,2525.0,3.04748266]
[1730067089990,3.60427,2525.2,2525.1,0.39647]
[1730067090384,0.39647,2525.1,2525.0,3.44396266]
[1730067090587,3.60426,2525.2,2525.1,0.39647]
[1730067090886,3.2078,2525.5,2525.0,3.04748266]
[1730067091091,0.39645,2525.3,2525.2,0.39645]
[1730067091281,0.3964,2525.6,2525.5,0.3964]
[1730067091478,1.40337,2526.0,2525.3,1.8149]
[1730067091687,0.4125,2526.0,2525.3,1.8149]
[1730067091889,0.39639,2525.7,2525.6,0.39639]
[1730067092684,0.99084,2526.0,2525.4,0.4235]
[1730067092885,0.99084,2526.0,2525.0,0.981]
[1730067092886,3.2078,2525.5,2525.0,0.981]
[1730067093093,3.2078,2525.2,2524.2,6.21009778]
[1730067093392,3.2078,2524.9,2524.4,0.4235]
[1730067093789,3.2078,2524.9,2524.5,3.04748266]
[1730067093992,0.39655,2524.7,2524.6,0.39655]
[1730067094183,0.4089,2525.1,2524.5,7.00828266]
[1730067094384,3.2078,2525.6,2525.0,3.04748266]
[1730067094597,0.99091,2525.9,2524.6,6.92454]
[1730067094598,0.39637,2525.8,2525.7,0.39637]
[1730067094887,0.39639,2525.7,2525.6,0.39639]
[1730067095281,3.2078,2525.9,2525.6,7.00668266]
[1730067095483,0.39638,2525.7,2525.6,3.44387266]
[1730067095790,3.60415,2525.9,2525.8,0.39636]
[1730067096003,3.2078,2525.9,2525.8,0.39636]
[1730067096498,3.2078,2525.9,2525.8,4.35556]
[1730067096699,3.60415,2525.9,2525.8,0.39636]
[1730067096996,0.00509639,2551.1,2525.8,7.00668266]
[1730067096997,1.98076,2527.2,2525.8,7.00668266]
[1730067097195,3.2078,2526.5,2526.4,0.39627]
[1730067097399,3.60405,2526.5,2526.4,3.04748266]
[1730067097694,0.39627,2526.4,2526.3,0.4362]
[1730067097895,3.2078,2526.5,2526.3,0.4362]
[1730067098091,0.39627,2526.4,2526.3,0.4362]
[1730067098286,0.39629,2526.3,2526.2,3.04748266]
[1730067098488,0.99058,2526.7,2526.2,7.00588266]
[1730067098695,0.39632,2526.1,2526.0,0.4362]
[1730067098990,3.2078,2526.5,2526.0,0.4362]
[1730067099194,3.2078,2526.5,2526.4,3.04748266]
[1730067099195,0.39625,2526.5,2526.4,3.04748266]
[1730067099492,0.39629,2526.3,2526.2,3.04748266]
[1730067099894,0.39629,2526.3,2526.2,3.44378266]
[1730067100095,0.39628,2526.4,2526.3,0.39629]
[1730067101092,0.39627,2526.4,2526.3,0.39629]
[1730067101492,4.04945,2526.6,2526.5,0.39625]
[1730067101897,0.39626,2526.5,2526.4,0.39626]
[1730067102096,3.6532,2526.6,2526.2,3.04748266]
[1730067102301,4.04945,2526.6,2526.5,0.39625]
[1730067102504,0.39626,2526.5,2526.4,0.39627]
[1730067102797,0.39629,2526.3,2526.2,3.04748266]
[1730067102990,3.2078,2526.6,2526.2,3.04748266]
[1730067103197,3.2078,2526.6,2526.5,3.44373266]
[1730067103499,3.2078,2526.6,2526.5,3.04748266]
[1730067103699,3.2078,2526.6,2526.5,3.44373266]
[1730067104008,3.2078,2526.6,2526.0,6.69148266]
[1730067104297,3.2078,2526.6,2526.1,0.39631]
[1730067104492,0.39628,2526.4,2526.3,0.39628]
[1730067104689,3.2078,2526.6,2526.2,0.39629]
[1730067104904,3.2078,2526.6,2526.0,3.48368266]
[1730067105201,4.19842,2526.6,2526.0,3.48368266]
[1730067105499,0.39629,2526.3,2526.2,0.39629]
[1730067105702,4.0378,2526.6,2526.0,3.48368266]
[1730067105893,0.39629,2526.3,2526.2,0.39629]
[1730067106199,0.39627,2526.4,2526.0,3.88000266]
[1730067106402,4.0378,2526.6,2526.1,0.39632]
[1730067106605,0.39632,2526.2,2526.1,0.39632]
[1730067106897,5.02843,2526.6,2526.0,3.48368266]
[1730067106898,0.99064,2526.5,2526.0,3.48368266]
[1730067107097,0.39631,2526.2,2526.1,0.39631]
[1730067107299,0.39632,2526.1,2526.0,3.48368266]
[1730067107797,0.39635,2525.9,2525.8,3.04748266]
[1730067108394,4.0378,2526.6,2525.8,7.00668266]
[1730067108600,0.39631,2526.2,2526.1,3.04748266]
[1730067109100,1.98132,2526.5,2525.9,3.89262266]